bitfinex/quotes_SOLUSD_20240614
["timestamp","ask_amount","ask_price","bid_price","bid_amount"]
[1718372155646,0.34,148.35,148.32,2.4944]
[1718372157243,0.34,148.35,148.31,24.9468]
[1718372157444,0.34,148.35,148.31,7.484]
[1718372157445,2.8341,148.35,148.31,7.484]
[1718372157650,2.8341,148.35,148.31,2.4947]
[1718372157820,2.8341,148.35,148.31,7.4842]
[1718372158656,0.34,148.35,148.31,12.4738]
[1718372158833,0.34,148.35,148.31,21.0784]
[1718372159031,0.34,148.35,148.32,2.4945]
[1718372159236,0.34,148.35,148.32,7.4837]
[1718372159443,0.34,148.35,148.32,2.4945]
[1718372160050,0.34,148.35,148.32,7.4837]
[1718372160255,0.34,148.35,148.33,2.4944]
[1718372160631,0.34,148.35,148.32,7.4837]
[1718372160948,0.34,148.35,148.32,2.4945]
[1718372161151,0.34,148.35,148.32,7.4837]
[1718372161346,0.34,148.35,148.33,2.4944]
[1718372161541,0.34,148.35,148.32,17.462]
[1718372161757,0.34,148.35,148.32,2.4944]
[1718372162055,7.4834,148.33,148.31,0.0001]
[1718372162255,0.17,148.32,148.31,0.0001]
[1718372162564,25.286,148.32,148.31,0.0001]
[1718372162859,31.396,148.32,148.31,0.0001]
[1718372163063,96.396,148.32,148.31,0.0001]
[1718372163439,72.8238,148.32,148.31,0.0001]
[1718372163632,67.8346,148.32,148.31,0.0001]
[1718372163952,65.34,148.32,148.31,0.0001]
[1718372164154,67.8346,148.32,148.31,0.0001]
[1718372164454,90.286,148.32,148.31,0.0001]
[1718372164659,96.396,148.32,148.31,0.0001]
[1718372166679,96.396,148.32,148.29,0.5639321]
[1718372166680,24.9492,148.3,148.29,0.5639321]
[1718372166841,96.2292,148.3,148.29,0.5639321]
[1718372167036,96.3992,148.3,148.29,0.5639321]
[1718372167768,15.0825,148.33,148.29,0.5639321]
[1718372167937,4.9898,148.3,148.29,0.5639321]
[1718372168257,7.4847,148.3,148.29,0.5639321]
[1718372168645,2.4949,148.3,148.29,0.5639321]
[1718372168849,20.0,148.32,148.29,0.5639321]
[1718372169040,22.4543,148.3,148.29,0.5639321]
[1718372169259,76.3992,148.3,148.29,0.5639321]
[1718372169566,96.3992,148.3,148.29,0.5639321]
[1718372170873,0.17,148.25,148.21,31.1735]
[1718372171241,2.496,148.24,148.21,0.1]
[1718372171441,0.17,148.23,148.21,0.1]
[1718372171649,32.6498,148.24,148.21,0.1]
[1718372171958,2.8361,148.23,148.21,0.1]
[1718372172172,4.9925,148.22,148.21,0.1]
[1718372172383,25.1326,148.22,148.21,0.1]
[1718372172660,96.4126,148.22,148.21,0.1]
[1718372173071,65.34,148.22,148.21,0.1]
[1718372173237,67.8362,148.22,148.21,0.1]
[1718372173563,96.4126,148.22,148.21,0.1]
[1718372174647,102.9323,148.22,148.21,0.1]
[1718372174849,79.3484,148.22,148.21,0.1]
[1718372175048,71.8597,148.22,148.21,0.1]
[1718372175366,96.8223,148.22,148.21,0.1]
[1718372176642,2.6671,148.17,148.14,0.8304939]
[1718372176861,17.65,148.17,148.14,0.8304939]
[1718372177065,2.6673,148.16,148.14,0.8304939]
[1718372177277,0.34,148.16,148.14,3.3280939]
[1718372177569,0.34,148.16,148.14,23.3087939]
[1718372177768,7.6595,148.21,148.17,2.4971]
[1718372177938,0.17,148.19,148.17,2.4971]
[1718372178140,2.6668,148.19,148.14,18.3133939]
[1718372178371,0.17,148.17,148.14,3.3280939]
[1718372178662,0.17,148.18,148.17,2.4971]
[1718372178840,12.6551,148.18,148.14,0.8304939]
[1718372179043,2.6671,148.17,148.14,0.8304939]
[1718372179242,2.4973,148.16,148.14,0.8304939]
[1718372179476,2.6672,148.17,148.14,0.8304939]
[1718372179768,0.17,148.16,148.14,3.3280939]
[1718372179941,0.17,148.16,148.15,9.9898]
[1718372180148,0.17,148.17,148.15,7.4923]
[1718372180347,0.17,148.18,148.15,14.9846]
[1718372180559,23.9942,148.22,148.17,2.4969]
[1718372180771,34.9787,148.21,148.16,24.9724]
[1718372180941,27.4894,148.21,148.16,24.9724]
[1718372181141,27.4894,148.21,148.17,2.4971]
[1718372181362,7.4901,148.2,148.15,17.4818]
[1718372181543,4.994,148.18,148.14,0.8304939]
[1718372181743,0.17,148.17,148.14,3.3279939]
[1718372181964,0.34,148.17,148.14,3.3279939]
[1718372182672,0.34,148.17,148.14,8.3231939]
[1718372182861,0.17,148.17,148.15,2.4974]
[1718372183041,2.4966,148.2,148.16,7.4917]
[1718372183368,24.9931,148.21,148.14,0.8304939]
[1718372183566,22.4964,148.21,148.17,7.4912]
[1718372183945,2.4963,148.22,148.18,7.4908]
[1718372184142,14.9768,148.23,148.18,24.9688]
[1718372184355,2.4962,148.23,148.19,7.4902]
[1718372184757,15.9359,148.24,148.14,19.2104939]
[1718372184945,2.4959,148.24,148.2,2.4965]
[1718372185147,6.0003,148.26,148.15,41.3837]
[1718372185344,2.4963,148.22,148.18,7.4905]
[1718372185676,2.4961,148.23,148.19,2.4967]
[1718372185856,7.4883,148.23,148.19,2.4967]
[1718372186362,0.17,148.22,148.19,7.4902]
[1718372186764,0.17,148.23,148.2,4.9931]
[1718372186963,0.17,148.23,148.22,2.4962]
[1718372187570,7.487,148.26,148.22,2.4962]
[1718372187881,2.496,148.24,148.2,2.4965]
[1718372188262,0.33333334,148.23,148.2,2.4965]
[1718372188660,0.33333334,148.23,148.2,7.4897]
[1718372189058,0.17,148.22,148.2,14.9795]
[1718372189264,0.17,148.22,148.21,7.4893]
[1718372189460,2.4957,148.26,148.22,7.4886]
[1718372189757,0.17,148.25,148.22,2.4961]
[1718372189958,0.34,148.25,148.22,2.4961]
[1718372190159,0.34,148.25,148.22,7.4886]
[1718372190358,37.9346,148.28,148.16,18.38]
[1718372190578,2.4958,148.25,148.21,2.4964]
[1718372190780,7.4873,148.25,148.21,2.4964]
[1718372191080,14.9746,148.25,148.21,2.4964]
[1718372191268,7.4873,148.25,148.21,2.4964]
[1718372191673,0.17,148.22,148.19,2.4967]
[1718372191858,0.17,148.22,148.19,7.4902]
[1718372192064,24.9602,148.24,148.2,2.4965]
[1718372192289,0.34,148.23,148.2,2.4965]
[1718372192498,2.8361,148.23,148.19,17.4772]
[1718372192667,2.8361,148.23,148.19,7.4901]
[1718372193078,2.8361,148.23,148.19,14.9804]
[1718372193290,0.34,148.23,148.2,7.4897]
[1718372193605,0.17,148.23,148.21,4.9927]
[1718372193759,0.17,148.24,148.21,7.4891]
[1718372193963,0.34,148.24,148.21,2.4964]
[1718372194307,0.34,148.24,148.2,24.9653]
[1718372194670,2.8359,148.24,148.2,7.4894]
[1718372195688,0.34,148.24,148.2,14.9792]
[1718372196061,0.34,148.24,148.2,12.4828]
[1718372196267,2.8359,148.24,148.2,7.4895]
[1718372196874,0.34,148.24,148.23,2.4961]
[1718372197062,0.17,148.25,148.22,2.4962]
[1718372197487,0.17,148.25,148.21,31.0836]
[1718372197488,2.6658,148.25,148.21,31.0836]
[1718372197965,0.17,148.25,148.21,28.5873]
[1718372198174,0.17,148.25,148.21,31.0835]
[1718372198372,2.4961,148.23,148.19,4.9933]
[1718372198680,0.17,148.23,148.2,6.12]
[1718372198877,0.17,148.23,148.21,2.4964]
[1718372199069,0.34,148.25,148.16,20.0]
[1718372199274,7.487,148.26,148.22,6.12]
[1718372199474,0.34,148.25,148.21,11.1127]
[1718372199875,7.4869,148.26,148.21,11.1127]
[1718372199876,8.7854,148.27,148.23,7.4881]
[1718372200100,2.6656,148.26,148.22,2.4961]
[1718372200288,2.6657,148.25,148.21,31.0835]
[1718372200617,9.9854,148.22,148.16,37.4806]
[1718372200920,9.9854,148.22,148.18,2.4969]
[1718372200921,0.17,148.21,148.18,2.4969]
[1718372201115,0.17,148.21,148.18,8.6169]
[1718372201416,0.17,148.22,148.19,13.6101]
[1718372201574,0.17,148.22,148.19,7.4901]
[1718372201772,0.17,148.22,148.19,28.5908]
[1718372202002,0.17,148.22,148.19,31.0874]
[1718372202306,0.17,148.22,148.19,13.6101]
[1718372203011,0.17,148.22,148.19,7.4901]
[1718372203221,0.17,148.22,148.18,22.4717]
[1718372203523,0.17,148.22,148.16,20.0]
[1718372203524,2.4966,148.2,148.16,2.4972]
[1718372203696,24.9654,148.21,148.17,2.4971]
[1718372203895,0.33333334,148.19,148.15,4.9947]
[1718372204096,0.33333334,148.19,148.11,21.5544]
[1718372204097,2.83023334,148.19,148.14,23.3088939]
[1718372204403,0.17,148.18,148.15,2.4974]
[1718372204739,7.82393334,148.19,148.15,2.4974]
[1718372204740,2.6668,148.19,148.15,2.4973]
[1718372204941,0.17,148.19,148.16,2.4972]
[1718372205107,0.17,148.2,148.17,2.4971]
[1718372205306,0.34,148.2,148.16,24.9723]
[1718372205633,0.17,148.18,148.16,7.4917]
[1718372205808,0.17,148.18,148.16,9.989]
[1718372206003,0.17,148.18,148.17,2.4971]
[1718372206224,0.17,148.2,148.17,22.4739]
[1718372206424,22.6664,148.21,148.17,7.4912]
[1718372206732,0.17,148.2,148.17,7.4912]
[1718372206939,0.17,148.2,148.17,14.9825]
[1718372207430,22.6664,148.21,148.17,2.497]
[1718372207632,20.17,148.21,148.18,2.4969]
[1718372207929,15.4981,148.22,148.19,7.4902]
[1718372208225,33.47682168,148.27,148.2,7.4896]
[1718372208226,22.4627,148.25,148.2,7.4896]
[1718372208398,7.4875,148.25,148.21,2.4964]
[1718372208598,27.82113334,148.24,148.19,22.4703]
[1718372208811,27.82113334,148.24,148.19,7.49]
[1718372208812,2.4961,148.23,148.19,7.49]
[1718372209223,0.33333334,148.22,148.19,7.49]
[1718372209426,22.80003334,148.22,148.17,7.491]
[1718372209727,0.17,148.21,148.18,2.4969]
[1718372210212,0.33333334,148.2,148.18,2.4969]
[1718372210832,0.33333334,148.2,148.18,14.9815]
[1718372211141,0.33333334,148.2,148.19,7.4902]
[1718372211329,0.33333334,148.2,148.19,14.9805]
[1718372211509,0.33333334,148.2,148.19,24.9676]
[1718372212130,0.33333334,148.2,148.18,4.9937]
[1718372212312,0.33333334,148.2,148.19,2.4967]
[1718372212623,0.33333334,148.2,148.19,24.9676]
[1718372215718,0.33333334,148.2,148.18,4.9937]
[1718372215929,0.33333334,148.2,148.19,24.9676]
[1718372216706,0.33333334,148.2,148.18,24.9687]
[1718372216909,0.33333334,148.2,148.18,24.9688]
[1718372217106,0.33333334,148.2,148.17,4.9941]
[1718372217337,0.33333334,148.2,148.17,27.4911]
[1718372217513,0.33333334,148.2,148.17,34.9824]
[1718372217709,0.33333334,148.2,148.19,2.4967]
[1718372218007,0.33333334,148.2,148.18,14.9817]
[1718372218220,0.33333334,148.2,148.19,24.9676]
[1718372218721,0.33333334,148.2,148.19,2.4967]
[1718372219018,0.33333334,148.2,148.19,14.9805]
[1718372219221,0.33333334,148.2,148.19,7.4902]
[1718372219430,0.33333334,148.2,148.19,24.9676]
[1718372219657,0.33333334,148.2,148.19,7.4902]
[1718372220125,0.33333334,148.2,148.19,2.4967]
[1718372220320,16.6209,148.19,148.15,12.487]
[1718372220540,0.17,148.18,148.14,0.8304939]
[1718372220852,2.4971,148.17,148.14,0.8304939]
[1718372221237,0.33333334,148.16,148.14,0.8304939]
[1718372221428,0.33333334,148.16,148.14,3.3280939]
[1718372221628,0.33333334,148.16,148.14,0.8304939]
[1718372222040,0.33333334,148.16,148.14,3.3280939]
[1718372222220,0.33333334,148.16,148.15,2.4974]
[1718372222419,0.33333334,148.16,148.14,8.3230939]
[1718372222852,14.9877,148.12,148.07,24.9871]
[1718372223045,25.1495,148.12,148.06,24.9887]
[1718372223350,25.1495,148.12,148.07,2.4988]
[1718372223553,25.3195,148.12,148.07,2.4988]
[1718372223849,25.3195,148.12,148.07,2.4987]
[1718372224153,0.34,148.12,148.08,2.4986]
[1718372224539,6.3682,148.14,148.01,41.8343]
[1718372224731,16.6209,148.15,148.13,2.4977]
[1718372224932,16.6209,148.15,148.12,2.4979]
[1718372225135,16.6209,148.15,148.11,0.1]
[1718372225355,2.4976,148.14,148.11,0.1]
[1718372225727,2.4979,148.12,148.11,0.1]
[1718372225933,7.6638,148.12,148.11,0.1]
[1718372226134,2.6679,148.12,148.11,0.1]
[1718372226548,25.3195,148.12,148.11,0.1]
[1718372227121,70.3195,148.12,148.11,0.1]
[1718372228056,90.3195,148.12,148.11,0.1]
[1718372229160,47.8379,148.12,148.11,0.1]
[1718372229450,67.8379,148.12,148.11,0.1]
[1718372229948,90.3195,148.12,148.11,0.1]
[1718372231159,65.34,148.12,148.11,0.1]
[1718372231474,20.34,148.12,148.11,0.1]
[1718372232065,90.3195,148.12,148.11,0.1]
[1718372233493,90.06807102,148.12,148.11,0.1]
[1718372233870,65.08857102,148.12,148.11,0.1]
[1718372234070,20.08857102,148.12,148.11,2.5981]
[1718372234290,16.6209,148.15,148.11,0.1]
[1718372234696,8.5547,148.18,148.14,7.4927]
[1718372234868,38.762,148.19,148.11,0.1]
[1718372234869,16.2903,148.19,148.11,0.1]
[1718372235067,16.2903,148.19,148.14,14.9855]
[1718372235068,41.2586,148.19,148.14,14.9855]
[1718372235273,7.4915,148.17,148.13,2.4977]
[1718372235471,14.9829,148.17,148.12,24.9791]
[1718372235680,7.4915,148.17,148.13,2.4978]
[1718372235885,2.4973,148.16,148.12,2.4979]
[1718372236196,24.9714,148.17,148.12,7.4938]
[1718372236495,2.4976,148.14,148.11,0.1]
[1718372236698,17.4807,148.17,148.11,17.5867]
[1718372236901,20.0,148.16,148.12,14.9874]
[1718372237282,20.0,148.16,148.13,2.4977]
[1718372237486,2.4975,148.15,148.11,5.0961]
[1718372237696,7.4924,148.15,148.11,0.1]
[1718372237889,7.4935,148.13,148.11,0.1]
[1718372238090,2.4978,148.13,148.11,0.1]
[1718372238296,24.9769,148.14,148.11,0.1]
[1718372238690,7.4931,148.14,148.11,0.1]
[1718372238989,7.4934,148.13,148.11,0.1]
[1718372239501,2.4979,148.12,148.11,0.1]
[1718372239888,7.493,148.14,148.11,0.1]
[1718372240509,7.4931,148.14,148.11,0.1]
[1718372240704,14.986,148.14,148.11,0.1]
[1718372240910,7.4934,148.13,148.11,0.1]
[1718372241120,2.4979,148.12,148.11,0.1]
[1718372241621,60.6734,148.12,148.11,0.1]
[1718372242529,105.6734,148.12,148.11,0.1]
[1718372242822,105.6734,148.12,148.04,24.9926]
[1718372242823,2.4985,148.09,148.04,24.9926]
[1718372242990,2.4986,148.08,148.04,7.4976]
[1718372243193,44.9848,148.09,148.04,14.9955]
[1718372243394,27.4955,148.09,148.05,2.4991]
[1718372243611,8.16256667,148.08,148.03,22.4944]
[1718372243914,25.65326667,148.08,148.03,7.4981]
[1718372244287,8.16266667,148.08,148.03,22.4949]
[1718372244511,15.65856667,148.08,148.03,7.498]
[1718372244712,23.15446667,148.08,148.03,14.9964]
[1718372244916,25.65316667,148.08,148.03,14.9964]
[1718372245211,8.16266667,148.08,148.03,14.9964]
[1718372245625,8.16266667,148.08,148.04,2.4993]
[1718372245811,3.16536667,148.08,148.04,2.4993]
[1718372246722,0.66666667,148.08,148.04,7.4979]
[1718372247012,3.16526667,148.08,148.04,7.4979]
[1718372247517,3.16526667,148.08,148.04,2.4993]
[1718372248014,8.16246667,148.08,148.04,2.4993]
[1718372248319,8.16256667,148.08,148.04,2.4993]
[1718372248501,15.65856667,148.08,148.04,2.4993]
[1718372248817,15.65856667,148.08,148.03,24.994]
[1718372249003,15.65856667,148.08,148.04,2.4993]
[1718372249191,3.16526667,148.08,148.04,14.9957]
[1718372249393,3.16526667,148.08,148.04,24.9928]
[1718372249623,3.16526667,148.08,148.04,7.4977]
[1718372249916,0.66666667,148.08,148.05,2.4991]
[1718372250303,0.66666667,148.08,148.04,22.4935]
[1718372250504,0.66666667,148.08,148.05,2.4991]
[1718372250815,3.16526667,148.08,148.04,7.4976]
[1718372251009,0.66666667,148.08,148.06,2.4989]
[1718372251310,0.66666667,148.08,148.06,14.9935]
[1718372251517,0.66666667,148.08,148.06,2.4989]
[1718372251918,0.66666667,148.08,148.07,2.4988]
[1718372252118,0.66666667,148.08,148.05,22.4914]
[1718372252317,0.66666667,148.08,148.05,12.4952]
[1718372252506,0.66666667,148.08,148.05,7.4971]
[1718372252700,0.66666667,148.08,148.05,2.499]
[1718372253303,0.66666667,148.08,148.05,7.4972]
[1718372253696,0.66666667,148.08,148.06,2.4989]
[1718372253925,0.66666667,148.08,148.05,24.9911]
[1718372254304,0.66666667,148.08,148.06,2.4989]
[1718372254829,0.66666667,148.08,148.07,12.494]
[1718372255008,0.66666667,148.08,148.07,24.988]
[1718372255204,0.66666667,148.08,148.06,7.4965]
[1718372255414,0.66666667,148.08,148.07,2.4988]
[1718372255729,0.66666667,148.08,148.07,24.988]
[1718372255948,0.66666667,148.08,148.07,2.4988]
[1718372256115,0.66666667,148.08,148.07,24.988]
[1718372256428,0.66666667,148.08,148.07,7.4964]
[1718372256617,0.66666667,148.08,148.07,2.4988]
[1718372257202,0.66666667,148.08,148.06,24.9889]
[1718372257421,0.66666667,148.08,148.07,2.4988]
[1718372257625,0.66666667,148.08,148.06,2.4988]
[1718372257826,0.66666667,148.08,148.07,2.4988]
[1718372258040,0.66666667,148.08,148.07,24.988]
[1718372264453,0.66666667,148.08,148.07,31.2409]
[1718372267428,0.66666667,148.08,148.07,24.988]
[1718372269232,0.66666667,148.08,148.07,2.4988]
[1718372269541,0.66666667,148.08,148.07,24.988]
[1718372273736,0.66666667,148.08,148.07,59.8521]
[1718372273924,0.66666667,148.08,148.07,79.8521]
[1718372274440,0.66666667,148.08,148.07,80.0221]
[1718372274642,0.66666667,148.08,148.07,80.3621]
[1718372275326,22.9493,148.18,148.14,24.9757]
[1718372275521,22.9493,148.18,148.15,17.4818]
[1718372275722,16.4065,148.18,148.15,11.1247]
[1718372275938,16.4065,148.18,148.16,8.6272]
[1718372276440,16.4065,148.18,148.16,13.6217]
[1718372276620,16.4065,148.18,148.16,8.6272]
[1718372276821,9.0956,148.22,148.18,2.4969]
[1718372277030,2.4963,148.22,148.18,2.4969]
[1718372277243,19.9694,148.23,148.18,17.4786]
[1718372277440,7.4885,148.23,148.19,2.4967]
[1718372277641,2.4963,148.22,148.18,7.4905]
[1718372277939,2.4962,148.23,148.19,7.4901]
[1718372278165,2.4962,148.22,148.18,24.9687]
[1718372278450,16.43,148.24,148.2,9.9862]
[1718372278626,8.8444,148.26,148.22,7.4886]
[1718372278822,13.8356,148.26,148.22,2.4961]
[1718372279854,8.8444,148.26,148.22,7.4886]
[1718372280355,8.8444,148.26,148.21,17.4743]
[1718372280570,12.4775,148.27,148.23,2.4961]
[1718372280853,7.4866,148.27,148.23,2.4961]
[1718372281053,2.4956,148.26,148.22,7.4886]
[1718372281229,2.4956,148.26,148.22,14.9774]
[1718372281429,2.4956,148.26,148.22,7.4886]
[1718372281629,2.4958,148.25,148.2,7.4898]
[1718372281847,7.4874,148.25,148.21,2.4964]
[1718372282042,2.4958,148.25,148.21,7.4892]
[1718372282342,7.4869,148.26,148.22,2.4962]
[1718372282659,2.4959,148.24,148.2,22.4688]
[1718372282830,2.4959,148.24,148.2,7.4896]
[1718372283336,24.9578,148.25,148.21,2.4964]
[1718372283738,7.4871,148.26,148.22,2.4962]
[1718372283969,7.4871,148.26,148.22,7.4887]
[1718372283970,2.4957,148.26,148.22,7.4887]
[1718372284252,2.4958,148.25,148.21,7.489]
[1718372284935,7.4869,148.26,148.22,2.4962]
[1718372285254,2.4957,148.25,148.21,24.964]
[1718372285465,14.973,148.27,148.22,4.9924]
[1718372285699,15.9317,148.28,148.15,6.5046]
[1718372285834,2.4963,148.22,148.18,2.4968]
[1718372286022,12.4823,148.21,148.16,22.4749]
[1718372286228,2.4966,148.2,148.16,2.4972]
[1718372286453,23.7357,148.22,148.18,2.4969]
[1718372286659,38.7134,148.22,148.17,24.9704]
[1718372286957,2.4966,148.2,148.16,4.9945]
[1718372287127,44.9648,148.21,148.17,2.4971]
[1718372287323,16.2466,148.22,148.13,16.3453]
[1718372287558,16.2466,148.22,148.19,7.4902]
[1718372287846,16.2466,148.22,148.13,16.3453]
[1718372288060,6.1439,148.24,148.21,7.489]
[1718372288226,23.1744,148.26,148.22,2.4961]
[1718372288421,15.6875,148.26,148.23,2.4959]
[1718372288626,15.6875,148.26,148.16,18.38]
[1718372288933,15.6875,148.26,148.24,22.463]
[1718372289136,8.8692,148.28,148.24,24.9588]
[1718372289335,6.374,148.28,148.17,6.6318]
[1718372289549,6.374,148.28,148.25,7.4871]
[1718372289857,6.374,148.28,148.24,24.9583]
[1718372290033,6.374,148.28,148.24,22.4625]
[1718372290226,8.8693,148.28,148.24,2.4958]
[1718372290428,2.4954,148.27,148.23,7.488]
[1718372290623,7.4863,148.27,148.23,2.496]
[1718372290853,2.4954,148.27,148.23,7.4882]
[1718372291076,0.1,148.29,148.19,33.8327]
[1718372291678,2.5951,148.29,148.25,2.4956]
[1718372291830,2.5951,148.29,148.25,7.4871]
[1718372292030,2.5951,148.29,148.27,2.4954]
[1718372292031,0.1,148.29,148.27,2.4954]
[1718372292227,0.1,148.29,148.28,2.4952]
[1718372292565,0.1,148.29,148.28,7.4857]
[1718372293071,0.1,148.29,148.28,24.9526]
[1718372293274,0.1,148.29,148.27,2.4954]
[1718372294266,0.1,148.29,148.27,7.4862]
[1718372294484,0.1,148.29,148.27,14.9725]
[1718372294657,0.1,148.29,148.26,2.4954]
[1718372295177,2.4952,148.28,148.24,7.4876]
[1718372295353,0.1,148.29,148.26,2.4955]
[1718372295749,2.5951,148.29,148.25,7.4869]
[1718372296475,2.4953,148.28,148.24,7.4876]
[1718372296648,7.4859,148.28,148.24,7.4877]
[1718372296855,2.4954,148.28,148.24,2.4959]
[1718372297067,24.9532,148.28,148.24,2.4959]
[1718372297266,7.5854,148.29,148.25,2.4957]
[1718372297459,7.5854,148.29,148.25,7.4872]
[1718372297655,2.4953,148.28,148.24,24.9585]
[1718372298274,2.4953,148.28,148.17,6.6318]
[1718372298275,2.4956,148.26,148.22,2.4961]
[1718372298484,22.4718,148.28,148.17,6.6318]
[1718372298687,24.9671,148.28,148.24,2.4958]
[1718372298851,24.9671,148.28,148.2,2.4966]
[1718372298852,2.4958,148.25,148.2,2.4966]
[1718372299055,20.0,148.27,148.23,22.4641]
[1718372299287,22.4954,148.27,148.23,7.4878]
[1718372299462,2.4956,148.26,148.22,22.4656]
[1718372299663,2.4956,148.26,148.23,2.4961]
[1718372299868,42.4591,148.27,148.23,2.4961]
[1718372299869,44.9546,148.27,148.23,2.4961]
[1718372300274,22.4954,148.27,148.23,24.9605]
[1718372300460,22.4954,148.27,148.23,17.4724]
[1718372300665,27.4863,148.27,148.23,2.496]
[1718372301360,27.4863,148.27,148.23,7.4882]
[1718372301668,22.4718,148.28,148.25,7.4872]
[1718372301990,22.4718,148.28,148.25,2.4957]
[1718372302166,16.2219,148.28,148.25,2.4957]
[1718372302367,18.7171,148.28,148.25,2.4957]
[1718372302574,16.2219,148.28,148.25,2.4957]
[1718372302866,16.2219,148.28,148.25,7.4872]
[1718372303068,16.2219,148.28,148.26,2.4956]
[1718372303384,16.2219,148.28,148.24,7.4874]
[1718372303687,2.4954,148.27,148.23,22.4642]
[1718372303860,2.4954,148.27,148.23,24.9601]
[1718372304060,2.4954,148.27,148.24,2.4959]
[1718372304260,41.175,148.28,148.24,2.4959]
[1718372304661,23.708,148.28,148.24,2.4959]
[1718372304866,16.2219,148.28,148.25,12.4786]
[1718372305190,16.2219,148.28,148.26,2.4956]
[1718372305695,16.2219,148.28,148.25,2.4957]
[1718372305893,16.2219,148.28,148.26,2.4955]
[1718372306082,16.2219,148.28,148.25,22.4618]
[1718372306282,4.9913,148.26,148.22,2.4961]
[1718372306592,4.9913,148.26,148.22,14.9773]
[1718372306593,2.4957,148.26,148.22,14.9773]
[1718372306960,2.4957,148.26,148.23,2.4961]
[1718372307160,24.9555,148.27,148.23,2.4961]
[1718372307688,7.4866,148.27,148.23,7.4882]
[1718372307871,23.7078,148.28,148.24,7.4876]
[1718372308062,16.2219,148.28,148.25,4.9914]
[1718372308276,16.2219,148.28,148.26,2.4955]
[1718372308485,16.2219,148.28,148.26,7.4866]
[1718372309100,0.1,148.29,148.27,2.4954]
[1718372309299,0.1,148.29,148.27,4.9908]
[1718372309504,0.1,148.29,148.25,22.4612]
[1718372309798,2.5951,148.29,148.26,2.4956]
[1718372310113,7.486,148.28,148.24,7.4876]
[1718372310288,0.1,148.29,148.26,2.4955]
[1718372310808,2.5951,148.29,148.25,24.9567]
[1718372311113,2.5951,148.29,148.25,14.9741]
[1718372311316,0.1,148.29,148.26,2.4955]
[1718372311484,2.5951,148.29,148.26,2.4955]
[1718372311797,2.5951,148.29,148.25,24.9571]
[1718372311994,2.5951,148.29,148.26,2.4955]
[1718372312306,0.1,148.29,148.26,7.4867]
[1718372312492,0.1,148.29,148.26,2.4955]
[1718372312911,2.5951,148.29,148.26,2.4955]
[1718372313096,0.1,148.29,148.26,2.4955]
[1718372313411,2.5951,148.29,148.26,2.4955]
[1718372313706,0.1,148.29,148.26,2.4955]
[1718372314589,2.5951,148.29,148.26,2.4955]
[1718372314911,2.5951,148.29,148.25,24.9572]
[1718372315082,2.5951,148.29,148.25,14.9742]
[1718372315083,7.5853,148.29,148.25,14.9742]
[1718372315286,7.4858,148.28,148.24,17.4708]
[1718372315493,7.4858,148.28,148.24,7.4874]
[1718372315893,2.4954,148.27,148.23,14.9763]
[1718372316377,24.9536,148.28,148.24,7.4877]
[1718372316584,6.5284,148.29,148.21,7.4891]
[1718372316889,7.4868,148.26,148.22,14.9773]
[1718372317089,2.4955,148.27,148.24,2.4959]
[1718372317385,7.4864,148.27,148.23,24.9608]
[1718372317579,6.5284,148.29,148.17,25.0118]